bitfinex/quotes_ETHUSD_20241030
["timestamp","ask_amount","ask_price","bid_price","bid_amount"]
[1730283497915,3.71837,2689.4,2688.8,4.58388]
[1730283498076,4.60124151,2689.4,2688.8,4.58388]
[1730283498276,4.60124151,2689.4,2688.8,0.8648]
[1730283498472,4.60124151,2689.4,2688.8,4.5838]
[1730283498677,3.71846,2689.3,2688.8,0.8648]
[1730283499773,4.60124151,2689.4,2688.8,4.58393]
[1730283499984,4.60124151,2689.4,2688.9,3.71892]
[1730283500178,4.57401,2689.6,2689.1,3.71863]
[1730283500520,3.71779,2689.8,2689.3,3.71841]
[1730283500724,3.71779,2689.8,2689.3,4.54245]
[1730283500879,1.043534,2689.8,2689.4,3.71822]
[1730283501080,0.8727,2689.9,2689.4,3.71822]
[1730283501621,0.8727,2689.9,2689.3,4.54245]
[1730283501779,3.71776,2689.8,2689.3,8.26082]
[1730283501979,3.71776,2689.8,2689.3,4.54245]
[1730283502202,4.548561,2689.8,2689.3,4.54245]
[1730283502898,4.548561,2689.8,2689.3,7.43671]
[1730283503101,0.830801,2689.8,2689.2,3.71857]
[1730283503276,0.830801,2689.8,2689.4,3.71829]
[1730283503690,0.830801,2689.8,2689.4,7.43658]
[1730283504035,0.8727,2689.9,2689.5,3.71816]
[1730283506621,0.8727,2689.9,2689.6,3.718]
[1730283506989,0.8727,2689.9,2689.5,3.71816]
[1730283507184,0.8727,2689.9,2689.6,0.372]
[1730283507598,3.043,2690.1,2689.6,1.1951]
[1730283507921,2.16,2690.1,2689.7,3.71787]
[1730283508824,2.16,2690.1,2689.7,3.7178]
[1730283509517,2.16,2690.1,2689.7,3.71779]
[1730283509725,2.16,2690.1,2689.8,3.71774]
[1730283510492,2.16,2690.1,2689.9,3.71758]
[1730283510786,3.71711,2690.3,2689.7,7.43558]
[1730283510993,4.765911,2690.3,2689.7,7.43558]
[1730283511250,4.765911,2690.3,2689.7,3.71779]
[1730283511525,3.71729,2690.2,2689.7,3.71779]
[1730283511731,3.71741,2690.1,2689.6,0.372]
[1730283511910,3.7177,2689.9,2689.3,4.09037]
[1730283512219,4.58829,2690.0,2689.5,0.372]
[1730283512422,0.4960019,2689.9,2689.5,0.372]
[1730283513922,4.58825,2690.0,2689.5,4.09007]
[1730283514736,0.8991,2690.2,2689.8,3.71766]
[1730283514893,0.8991,2690.2,2689.6,0.8939]
[1730283515093,0.8991,2690.2,2689.7,3.71778]
[1730283515497,4.61637,2690.2,2689.7,3.71778]
[1730283515695,5.449702,2690.2,2689.7,3.71778]
[1730283515993,0.8991,2690.2,2689.7,3.71778]
[1730283516738,4.61632,2690.2,2689.7,3.71778]
[1730283517095,0.8991,2690.2,2689.8,3.71774]
[1730283520603,0.8991,2690.2,2689.9,3.71759]
[1730283520804,3.71691,2690.5,2689.9,3.7175]
[1730283521112,4.56249,2690.5,2690.0,4.08939]
[1730283521313,0.8457,2690.5,2690.0,0.372]
[1730283521514,2.0455556,2690.5,2690.1,3.71733]
[1730283522702,5.7624456,2690.5,2690.0,0.372]
[1730283522901,3.71692,2690.4,2690.0,0.372]
[1730283523238,4.66484156,2690.4,2690.0,0.372]
[1730283524335,4.66484156,2690.4,2690.0,4.08946]
[1730283525762,3.7172,2690.2,2689.7,3.71778]
[1730283526064,3.7172,2690.2,2689.7,4.08978]
[1730283526215,0.8675,2690.1,2689.7,0.372]
[1730283526416,4.58489,2690.1,2689.7,0.372]
[1730283526754,4.58489,2690.1,2689.5,7.43614]
[1730283526755,3.7175,2690.0,2689.6,0.372]
[1730283526951,0.8675,2690.1,2689.6,4.08999]
[1730283527142,4.58488,2690.1,2689.6,4.08999]
[1730283528422,4.58488,2690.1,2689.5,3.71804]
[1730283528423,4.58488,2690.1,2689.7,4.08988]
[1730283528846,4.58488,2690.1,2689.7,0.372]
[1730283529059,5.49889742,2690.1,2689.7,0.372]
[1730283531149,1.78151742,2690.1,2689.7,4.08979]
[1730283531342,0.8675,2690.1,2689.7,4.08979]
[1730283532639,0.8675,2690.1,2689.7,7.80759]
[1730283532833,0.8675,2690.1,2689.7,4.08979]
[1730283533266,0.8675,2690.1,2689.7,7.80759]
[1730283533675,0.8675,2690.1,2689.7,4.08979]
[1730283534645,0.8675,2690.1,2689.8,3.71771]
[1730283534881,4.58485,2690.1,2689.7,0.372]
[1730283535050,5.04332,2690.1,2689.7,0.372]
[1730283535377,5.04332,2690.1,2689.4,0.372]
[1730283535378,3.71774,2689.8,2689.4,0.372]
[1730283535582,0.8941,2689.7,2689.4,0.372]
[1730283537379,4.612,2689.7,2689.2,4.09056]
[1730283537539,0.8941,2689.7,2689.2,4.09056]
[1730283537738,0.8941,2689.7,2689.3,4.09033]
[1730283539066,0.8941,2689.7,2689.4,3.71829]
[1730283539250,3.71761,2689.9,2689.4,3.71829]
[1730283539251,0.8682,2689.9,2689.5,3.71809]
[1730283539445,1.6621372,2689.9,2689.5,3.71809]
[1730283540051,3.71743,2690.1,2689.6,3.71799]
[1730283540280,0.8946,2690.2,2689.6,1.2391]
[1730283540453,0.8946,2690.2,2689.8,3.71773]
[1730283540852,1.355774,2690.2,2689.7,0.372]
[1730283541093,3.71735,2690.1,2689.7,0.372]
[1730283541978,3.71735,2690.1,2689.6,0.8671]
[1730283541979,3.71747,2690.0,2689.6,4.09001]
[1730283542178,4.2247824,2690.0,2689.3,4.09031]
[1730283542399,4.2247824,2690.0,2689.5,3.71814]
[1730283542556,3.71769,2689.9,2689.3,4.09031]
[1730283542892,4.96286824,2689.9,2689.3,7.80865]
[1730283543061,3.7178,2689.8,2689.3,4.09031]
[1730283543395,3.7178,2689.8,2689.3,7.80867]
[1730283543558,4.96286824,2689.9,2689.4,4.09018]
[1730283544586,0.8227,2689.9,2689.6,3.718]
[1730283545178,0.8227,2689.9,2689.5,3.71814]
[1730283547390,0.8227,2689.9,2689.6,0.372]
[1730283548189,4.5404,2689.9,2689.6,0.372]
[1730283548383,7.88972,2689.8,2689.3,0.372]
[1730283548979,3.71793,2689.7,2689.3,0.372]
[1730283549185,3.71793,2689.7,2689.3,4.09042]
[1730283549367,4.29987264,2689.7,2689.3,0.372]
[1730283550000,3.71804,2689.6,2689.4,0.372]
[1730283550160,0.8701,2689.5,2689.4,0.372]
[1730283550499,4.58826,2689.5,2689.4,0.372]
[1730283551193,3.71838,2689.4,2688.9,0.372]
[1730283551559,3.71852,2689.3,2688.9,0.372]
[1730283551763,3.71866,2689.2,2688.9,0.372]
[1730283551987,3.71866,2689.2,2688.8,0.372]
[1730283552695,0.830664,2689.4,2688.9,4.09099]
[1730283552898,3.71831,2689.4,2688.9,4.09099]
[1730283555600,3.71844,2689.3,2688.8,4.09113]
[1730283557217,3.71844,2689.3,2689.0,0.372]
[1730283557574,4.29991264,2689.7,2689.1,3.71863]
[1730283557815,3.7182,2689.5,2689.0,4.09078]
[1730283557983,3.7182,2689.5,2689.0,4.09077]
[1730283558313,3.71831,2689.4,2689.0,4.09077]
[1730283559014,4.23488026,2689.5,2689.0,4.09077]
[1730283559184,4.23488026,2689.5,2689.1,3.7187]
[1730283559783,7.95313026,2689.5,2689.0,0.372]
[1730283560187,3.71859,2689.2,2688.5,0.8228]
[1730283560514,3.71859,2689.2,2688.8,0.372]
[1730283560712,4.60389,2689.2,2688.8,0.372]
[1730283560912,1.8057223,2689.2,2688.8,0.372]
[1730283561140,1.8057223,2689.2,2688.8,4.09099]
[1730283561876,3.71831,2689.4,2688.8,4.09099]
[1730283561877,3.71831,2689.4,2689.0,0.372]
[1730283562080,4.60361,2689.4,2689.0,0.372]
[1730283562994,4.60361,2689.4,2688.9,0.372]
[1730283563793,4.60361,2689.4,2688.9,4.09095]
[1730283564098,4.60361,2689.4,2688.8,3.71899]
[1730283564099,4.60361,2689.4,2689.0,4.09084]
[1730283566930,4.60361,2689.4,2689.1,3.71867]
[1730283566931,0.8853,2689.4,2689.1,3.71867]
[1730283567095,4.5885,2689.6,2689.1,3.71867]
[1730283567300,5.39028926,2689.6,2689.2,0.372]
[1730283568234,1.67218926,2689.6,2689.2,0.372]
[1730283568434,3.71841,2689.4,2688.9,0.372]
[1730283568741,3.71841,2689.4,2689.0,4.09082]
[1730283569238,7.4368,2689.4,2689.0,0.372]
[1730283569540,3.71839,2689.4,2689.0,0.372]
[1730283570047,3.71844,2689.3,2689.0,0.372]
[1730283570241,4.54908,2689.4,2689.0,0.372]
[1730283570805,8.26748,2689.4,2689.0,0.372]
[1730283571113,3.71844,2689.3,2689.0,0.372]
[1730283571742,4.54908,2689.4,2689.0,0.372]
[1730283571922,0.83069,2689.4,2689.0,0.372]
[1730283572127,4.58853,2689.6,2689.0,0.372]
[1730283572627,3.71817,2689.5,2689.0,0.372]
[1730283573206,3.71817,2689.5,2689.0,4.09084]
[1730283575917,0.8704,2689.6,2688.8,0.372]
[1730283576237,0.8704,2689.6,2688.3,3.01]
[1730283576238,0.58194264,2689.7,2689.2,3.71851]
[1730283576401,0.58194264,2689.7,2689.3,3.71841]
[1730283576597,0.58194264,2689.7,2689.2,3.71851]
[1730283576598,4.29990264,2689.7,2689.2,3.71851]
[1730283576802,3.71803,2689.6,2689.2,3.71851]
[1730283577002,4.29990264,2689.7,2689.2,3.71851]
[1730283577234,0.51286026,2689.6,2689.2,3.71851]
[1730283578405,0.51286026,2689.6,2689.3,3.71842]
[1730283578707,0.58194264,2689.7,2689.5,3.71814]
[1730283578933,0.58194264,2689.7,2689.4,4.92848]
[1730283579607,0.58194264,2689.7,2689.4,8.64671]
[1730283579946,0.58194264,2689.7,2689.4,4.92848]
[1730283580710,5.8777,2689.9,2689.4,4.92848]
[1730283580935,6.7207331,2689.9,2689.4,8.64671]
[1730283581140,3.0030331,2689.9,2689.4,8.64668]
[1730283581314,3.0030331,2689.9,2689.4,4.92848]
[1730283581940,2.16,2689.9,2689.4,4.92848]
[1730283582136,2.16,2689.9,2689.6,3.71794]
[1730283584849,2.16,2689.9,2689.5,3.71816]
[1730283584850,2.16,2689.9,2689.7,3.71787]
[1730283585858,2.16,2689.9,2689.8,4.08974]
[1730283586068,0.58192634,2690.0,2689.9,3.71761]
[1730283586425,4.5819,2690.4,2689.9,4.08961]
[1730283586760,5.16373111,2690.4,2689.9,4.08961]
[1730283587256,5.16373111,2690.4,2689.9,4.08959]
[1730283587427,8.88078111,2690.4,2689.9,0.372]
[1730283587756,5.16373111,2690.4,2689.9,4.08953]
[1730283589356,8.88073111,2690.4,2689.9,4.08953]
[1730283589522,5.16373111,2690.4,2689.9,4.08953]
[1730283589721,8.88074111,2690.4,2689.9,4.08953]
[1730283589944,2.33480522,2690.4,2689.9,0.372]
[1730283590255,0.8502,2689.8,2689.6,0.372]
[1730283590417,3.71788,2689.7,2689.2,3.71848]
[1730283591030,3.71788,2689.7,2689.3,0.372]
[1730283591560,0.8502,2689.8,2689.2,0.372]
[1730283591561,3.71803,2689.6,2689.2,0.372]
[1730283591763,3.71828,2689.5,2689.2,0.372]
[1730283591925,0.814,2689.4,2689.2,0.372]
[1730283592126,3.71843,2689.3,2689.2,0.372]
[1730283592357,3.71867,2689.2,2688.9,0.372]
[1730283592553,3.71843,2689.3,2688.8,0.372]
[1730283592775,3.71859,2689.2,2688.8,0.372]
[1730283594266,0.814,2689.4,2688.9,0.07438052]
[1730283594576,3.71794,2689.7,2689.2,3.7185]
[1730283594577,4.58644,2689.7,2689.2,3.7185]
[1730283594735,0.8685,2689.9,2689.3,3.71843]
[1730283595064,0.8685,2689.9,2689.4,4.09016]
[1730283595270,4.58615,2689.9,2689.4,4.09016]
[1730283595471,4.58615,2689.9,2689.4,0.372]
[1730283595677,6.221312,2689.9,2689.4,0.372]
[1730283595972,4.58615,2689.9,2689.4,4.09026]
[1730283596275,3.71775,2689.8,2689.4,0.372]
[1730283596575,3.71775,2689.8,2689.1,3.71867]
[1730283596773,0.8685,2689.9,2689.2,0.372]
[1730283597074,0.89165,2689.8,2689.2,0.372]
[1730283597370,4.6095,2689.8,2689.2,4.09048]
[1730283597735,3.7179,2689.7,2689.2,4.09048]
[1730283598637,3.71804,2689.6,2689.1,4.09064]
[1730283600581,3.71818,2689.5,2689.1,0.372]
[1730283600875,4.53178,2689.5,2689.1,0.372]
[1730283602373,0.8136,2689.5,2689.1,4.09064]
[1730283602744,0.8136,2689.5,2689.1,0.372]
[1730283603170,3.71845,2689.3,2688.9,0.372]
[1730283603376,0.8136,2689.5,2688.9,0.372]
[1730283603721,0.8136,2689.5,2688.7,3.71915]
[1730283603722,3.71867,2689.2,2688.7,3.71915]
[1730283603881,3.71867,2689.2,2688.6,4.54588]
[1730283604038,3.71867,2689.2,2688.7,3.71916]
[1730283605774,3.71867,2689.2,2688.7,3.71923]
[1730283605956,4.5076866,2689.2,2688.7,3.71923]
[1730283606271,4.5076866,2689.2,2688.6,4.91788]
[1730283606272,4.5076866,2689.2,2688.8,3.71912]
[1730283606652,4.171496,2689.4,2688.6,1.1986]
[1730283606975,0.453166,2689.4,2688.9,0.372]
[1730283607177,3.71832,2689.4,2689.0,1.1842]
[1730283607340,4.53184,2689.5,2689.0,4.90301]
[1730283607540,5.356831,2689.5,2689.0,4.90301]
[1730283608378,3.71831,2689.4,2689.0,1.1842]
[1730283608538,3.71831,2689.4,2689.0,0.372]
[1730283608739,3.71852,2689.3,2688.9,0.372]
[1730283609054,0.743683,2689.2,2688.9,0.372]
[1730283609252,3.71852,2689.3,2688.9,0.372]
[1730283613010,3.71852,2689.3,2688.9,4.09098]
[1730283615333,0.58200076,2689.4,2689.3,3.71843]
[1730283615533,4.54478,2689.9,2689.3,4.59233]
[1730283615736,1.259278,2689.8,2689.4,3.71823]
[1730283616238,1.259278,2689.8,2689.5,3.71812]
[1730283616533,8.048,2690.0,2689.6,0.8179]
[1730283616831,8.048,2690.0,2689.6,4.90785]
[1730283617033,8.048,2690.0,2689.6,4.53585]
[1730283617218,8.048,2690.0,2689.7,3.71787]
[1730283617840,8.048,2690.0,2689.6,0.8179]
[1730283617841,8.048,2690.0,2689.6,4.5359]
[1730283618195,8.048,2690.0,2689.7,3.71787]
[1730283618875,8.048,2690.0,2689.6,0.8179]
[1730283619033,11.76547,2690.0,2689.6,0.8179]
[1730283619432,8.048,2690.0,2689.6,0.8179]
[1730283619860,13.00027785,2690.0,2689.6,0.8179]
[1730283620772,3.71761,2689.9,2689.6,0.8179]
[1730283621970,9.28272785,2690.0,2689.6,0.8179]
[1730283622565,13.00021785,2690.0,2689.6,0.8179]
[1730283624673,5.87749,2690.0,2689.6,0.8179]
[1730283627077,9.59505,2690.0,2689.6,0.372]
[1730283627456,5.87749,2690.0,2689.6,0.372]
[1730283628148,5.87749,2690.0,2689.5,0.372]
[1730283628481,4.58821,2689.9,2689.5,0.372]
[1730283630218,4.58826,2689.9,2689.2,0.8138]
[1730283630352,7.43649,2689.5,2689.1,0.372]
[1730283630693,0.743649,2689.4,2689.1,0.372]
[1730283630862,3.71844,2689.3,2689.1,0.372]
[1730283631298,3.71844,2689.3,2688.9,0.372]
[1730283631466,4.56994,2689.5,2688.9,4.16532134]
[1730283631467,3.71832,2689.4,2688.9,4.16532134]
[1730283632054,3.71832,2689.4,2689.0,0.07003727]
[1730283634854,3.71847,2689.3,2689.0,0.07003727]
[1730283635061,3.71864,2689.2,2689.0,0.07003727]
[1730283636158,3.71847,2689.3,2689.0,0.07003727]
[1730283636495,7.9397564,2689.3,2689.0,0.07003727]
[1730283636854,4.2211864,2689.3,2689.0,0.07003727]
[1730283643208,10.50134,2689.8,2689.1,4.61238]
[1730283643413,10.50134,2689.8,2689.0,0.07003727]
[1730283643414,5.888,2689.8,2689.5,3.71814]
[1730283643709,5.888,2689.8,2689.6,4.67644052]
[1730283644214,5.888,2689.8,2689.7,3.71788]
[1730283644387,2.16,2690.0,2689.8,3.71767]
[1730283644591,2.16,2690.0,2689.8,4.08967]
[1730283644797,0.58191849,2690.1,2689.9,3.78225052]
[1730283645003,0.58191849,2690.1,2690.0,0.8515]
[1730283645214,8.32923,2690.5,2690.0,0.8515]
[1730283645503,9.74397191,2690.5,2690.0,0.91614426]
[1730283645818,3.71694,2690.4,2690.0,0.91614426]
[1730283646313,2.31024191,2690.5,2690.0,0.06464426]
[1730283646476,4.59944,2690.1,2689.3,0.8515]
[1730283646674,3.71769,2689.9,2689.4,0.0644909]
[1730283646918,5.138206,2689.9,2689.4,0.0644909]
[1730283647570,5.138206,2689.9,2689.4,3.7827009]
[1730283647571,1.420516,2689.9,2689.4,3.7827009]
[1730283647984,5.138146,2689.9,2689.4,3.7827009]
[1730283648919,3.71797,2689.7,2689.4,0.4364909]
[1730283649119,3.71797,2689.7,2689.4,0.372]
[1730283649507,3.71754,2690.0,2689.5,0.0623412]
[1730283650310,3.71754,2690.0,2689.5,3.7804912]
[1730283650501,5.138033,2690.0,2689.5,3.7804912]
[1730283654934,3.71761,2689.9,2689.5,0.0623412]
[1730283659130,3.71761,2689.9,2689.5,0.9561412]
[1730283663741,3.71776,2689.8,2689.5,0.9561412]
[1730283663946,3.71776,2689.8,2689.5,0.0623412]
[1730283666966,3.71802,2689.6,2689.5,0.0623412]
[1730283667263,4.54708,2689.7,2689.2,4.09057]
[1730283667440,8.26505,2689.7,2689.5,0.0603103]
[1730283667633,8.26505,2689.7,2689.2,4.09057]
[1730283667840,5.46214253,2689.7,2689.2,0.372]
[1730283668048,3.71811,2689.6,2689.3,0.0603103]
[1730283668458,4.54708,2689.7,2689.3,0.0603103]
[1730283670462,3.71788,2689.7,2689.4,0.8701]
[1730283670966,3.71788,2689.7,2689.5,0.0603793]
[1730283672984,2.16,2690.0,2689.6,3.71794]
[1730283673159,2.16,2690.0,2689.8,3.71774]
[1730283673981,2.16,2690.0,2689.9,0.0603613]
[1730283674392,3.71688,2690.5,2689.9,4.6181713]
[1730283674563,3.71652,2690.7,2690.2,4.5573]
[1730283674764,3.71664,2690.6,2690.1,0.372]
[1730283674968,3.71664,2690.6,2690.1,4.08928]
[1730283675153,3.71652,2690.7,2690.2,0.06024731]
[1730283675473,1.69423887,2690.7,2690.2,0.06024731]
[1730283675893,1.69423887,2690.7,2690.2,4.14943731]
[1730283676066,3.71667,2690.6,2690.2,0.43224731]
[1730283676983,1.69423887,2690.7,2690.2,0.43224731]
[1730283677185,1.69423887,2690.7,2690.2,4.14940731]
[1730283677557,5.41075887,2690.7,2690.2,7.86652731]
[1730283677968,5.41075887,2690.7,2690.2,4.14936731]
[1730283678164,3.71652,2690.7,2690.2,7.86648731]
[1730283678373,3.71652,2690.7,2690.2,4.14936731]
[1730283679119,3.71652,2690.7,2690.2,4.14935731]
[1730283679423,3.71652,2690.7,2690.2,4.14934731]
[1730283680914,9.60437,2690.8,2690.3,3.71705]
[1730283681116,9.60437,2690.8,2690.4,0.8394]
[1730283681284,11.29859387,2690.8,2690.4,0.89947934]
[1730283681485,7.58222387,2690.8,2690.4,0.89947934]
[1730283681683,2.74184865,2690.9,2690.5,0.8443]
[1730283681913,2.74184865,2690.9,2690.8,3.71636]
[1730283682332,2.16,2690.9,2690.8,3.77632238]
[1730283682932,2.16,2690.9,2690.8,4.23838462]
[1730283683133,2.16,2690.9,2690.8,5.09668462]
[1730283683984,3.71505,2691.8,2691.2,3.71569]
[1730283684246,0.8131,2692.1,2690.8,0.52202462]
[1730283684247,0.58157793,2692.0,2691.4,3.71553]
[1730283684525,5.888,2692.2,2691.5,0.07430209]
[1730283684693,3.71485,2691.9,2691.5,0.05976154]
[1730283685183,7.42929,2692.1,2691.5,3.77515154]
[1730283685384,3.71472,2692.0,2691.5,0.05976154]
[1730283685790,3.71488,2691.9,2691.5,0.05976154]
[1730283686520,3.71462,2692.1,2691.6,0.8637]
[1730283686952,3.71462,2692.1,2691.7,0.05976154]
[1730283687569,3.71486,2691.9,2691.7,0.05976154]
[1730283687769,3.71498,2691.8,2691.7,0.05976154]
[1730283687924,3.71498,2691.8,2691.0,4.55101]
[1730283687925,3.71486,2691.9,2691.0,0.835]
[1730283688128,3.71498,2691.8,2691.0,0.835]
[1730283688372,3.71523,2691.7,2691.2,3.71571]
[1730283688869,3.71486,2691.9,2691.4,3.71552]
[1730283689066,3.71507,2691.8,2691.3,0.90287877]
[1730283689234,6.7011,2692.2,2691.3,0.8433]
[1730283689434,3.71505,2691.8,2691.4,0.05957877]
[1730283689634,3.71513,2691.7,2691.4,0.05957877]
[1730283690040,7.43015,2691.8,2691.4,0.05957877]
[1730283690265,3.71529,2691.6,2691.4,0.05957877]
[1730283690480,3.71554,2691.4,2691.0,0.8488]
[1730283691189,7.43068,2691.6,2691.0,0.8488]
[1730283691547,3.71547,2691.5,2691.0,0.8488]
[1730283692070,3.71547,2691.5,2691.1,0.372]
[1730283692285,3.71529,2691.6,2691.1,0.372]
[1730283692478,3.71554,2691.4,2691.1,0.372]
[1730283692942,7.43067,2691.6,2691.1,0.372]
[1730283693348,3.71529,2691.6,2691.1,0.372]
[1730283694051,3.71529,2691.6,2691.1,4.08787]
[1730283694248,3.71506,2691.8,2691.3,0.372]
[1730283694249,7.43015,2691.8,2691.3,0.372]
[1730283694447,3.71515,2691.7,2691.3,0.372]
[1730283694749,3.71506,2691.8,2691.3,0.372]
[1730283695177,3.71506,2691.8,2691.4,0.8956]
[1730283695351,4.5106542,2692.0,2691.4,0.8956]
[1730283695352,8.2254742,2692.0,2691.4,4.61113]
[1730283695551,7.42961,2692.0,2691.4,4.61113]
[1730283695780,3.71479,2692.0,2691.4,4.61113]
[1730283696097,3.71486,2691.9,2691.4,4.61113]
[1730283696599,3.71516,2691.7,2691.4,0.8956]
[1730283696959,3.71516,2691.7,2691.3,0.372]
[1730283697285,3.71529,2691.6,2691.3,0.372]
[1730283697600,3.71536,2691.6,2691.3,0.372]
[1730283697902,3.71507,2691.8,2691.3,0.372]
[1730283698397,3.71507,2691.8,2691.3,4.08763]
[1730283698598,3.71512,2691.7,2691.3,0.372]
[1730283701705,3.71507,2691.8,2691.3,4.16196727]
[1730283702397,3.71507,2691.8,2691.3,4.08766]
[1730283702600,3.71507,2691.8,2691.3,4.16189451]
[1730283703299,6.7011,2692.2,2691.4,1.2207]
[1730283703502,3.71465,2692.1,2691.5,3.7896207]
[1730283703711,3.71465,2692.1,2691.6,0.8487]
[1730283703995,3.71485,2691.9,2691.6,0.8487]
[1730283705199,3.71485,2691.9,2691.7,0.05926106]
[1730283705417,3.51485,2691.9,2691.7,0.05926106]
[1730283705634,3.71498,2691.8,2691.7,0.05926106]
[1730283705810,3.71536,2691.6,2691.4,1.2685]
[1730283706117,7.4307,2691.6,2691.4,1.2685]
[1730283706277,3.71534,2691.6,2691.4,1.2685]
[1730283707819,3.71507,2691.8,2691.4,1.2685]
[1730283708002,3.71513,2691.7,2691.4,1.2685]
[1730283710025,3.71527,2691.6,2691.4,1.2685]
[1730283711325,3.71527,2691.6,2691.2,0.372]
[1730283711639,3.71551,2691.5,2691.2,0.372]
[1730283713038,3.71484,2691.9,2691.2,0.372]
[1730283713344,3.71563,2691.4,2691.2,0.372]
[1730283714307,3.71567,2691.3,2691.2,0.372]
[1730283717141,3.71516,2691.7,2691.2,0.372]
[1730283717345,3.71516,2691.7,2691.3,0.91430966]
[1730283718136,3.71516,2691.7,2691.3,1.28630966]
[1730283718321,7.42984,2691.9,2691.3,1.28630966]
[1730283718534,3.71506,2691.8,2691.3,1.28630966]
[1730283718852,3.71506,2691.8,2691.4,0.50021097]
[1730283719914,3.71486,2691.9,2691.4,0.50021097]
[1730283720247,3.71465,2692.1,2691.6,0.854]
[1730283720248,3.71471,2692.0,2691.6,0.854]
[1730283720829,3.71471,2692.0,2691.7,0.05546883]
[1730283721545,2.16,2692.3,2691.9,0.372]
[1730283721847,2.16,2692.3,2692.0,1.25863702]
[1730283722045,2.16,2692.3,2692.0,2.12745472]
[1730283722203,2.16,2692.3,2692.0,5.47011472]
[1730283722832,2.16,2692.3,2692.0,1.75545472]
[1730283723036,3.71382,2692.7,2692.1,3.78876404]
[1730283723241,3.71382,2692.7,2692.2,0.8232]
[1730283723445,5.888,2692.8,2692.3,4.53748]
[1730283723951,5.888,2692.8,2692.4,3.76745958]
[1730283724101,5.888,2692.8,2692.4,4.13945958]
[1730283724337,5.888,2692.8,2692.6,3.71387]
[1730283724544,3.713,2693.3,2692.6,3.71387]
[1730283724955,3.713,2693.3,2692.7,0.05330958]
[1730283725184,3.713,2693.3,2692.8,0.8815]
[1730283725487,3.713,2693.3,2692.8,1.75494596]
[1730283725648,3.713,2693.3,2692.9,0.05330958]
[1730283725845,9.6007,2693.5,2692.9,0.05330958]
[1730283726086,13.31344,2693.5,2692.9,0.05330958]
[1730283726253,3.71291,2693.3,2692.9,0.05330958]
[1730283726656,3.71333,2693.0,2692.9,0.05330958]
[1730283726969,3.71383,2692.7,2692.5,1.2627]
[1730283727169,7.4277,2692.7,2692.5,0.8907]
[1730283727385,3.71383,2692.7,2692.6,0.05308508]
[1730283729400,0.8926,2693.2,2692.6,0.05308508]
[1730283729596,3.71342,2693.0,2692.6,0.05308508]
[1730283729801,3.71374,2692.7,2692.6,0.05308508]
[1730283730205,3.71389,2692.6,2692.2,0.8972]
[1730283730685,3.71355,2692.9,2692.3,3.71429]
[1730283731014,3.71378,2692.7,2692.4,0.461149]
[1730283731181,3.71439,2692.3,2691.8,0.372]
[1730283731380,3.71501,2691.8,2691.6,0.8812]
[1730283731623,3.71501,2691.8,2691.2,0.8812]
[1730283731624,3.71512,2691.7,2691.2,0.8812]
[1730283731773,3.7152,2691.7,2691.3,0.459704]
[1730283731975,3.7152,2691.7,2691.3,0.07430365]
[1730283732314,3.71503,2691.8,2691.3,0.07430365]
[1730283732612,3.71503,2691.8,2691.3,0.54143302]
[1730283732769,3.71514,2691.7,2691.3,0.54143302]
[1730283732976,3.7154,2691.5,2691.3,0.46712937]
[1730283733316,3.71514,2691.7,2691.2,0.8812]
[1730283733498,3.71514,2691.7,2691.3,0.0743037]
[1730283734978,3.71514,2691.7,2691.4,0.04930395]
[1730283735802,3.71514,2691.7,2691.2,0.8812]
[1730283736008,3.71514,2691.7,2691.5,0.04930395]
[1730283736190,3.71498,2691.8,2691.2,0.8812]
[1730283736499,3.71567,2691.3,2691.2,0.8812]
[1730283736722,3.71543,2691.5,2691.2,0.8812]
[1730283737817,3.71555,2691.4,2691.2,0.8812]
[1730283739107,3.71543,2691.5,2691.2,0.8812]
[1730283739479,3.71556,2691.4,2691.2,0.8812]
[1730283740378,3.71543,2691.5,2691.2,0.8812]
[1730283742125,3.71514,2691.7,2691.2,0.8812]
[1730283742439,3.71496,2691.9,2691.3,4.175327]
[1730283742596,3.71498,2691.8,2691.3,4.175327]
[1730283742921,3.7153,2691.6,2691.3,0.459707]
[1730283743148,3.7153,2691.6,2691.2,0.8812]
[1730283743913,3.71512,2691.7,2691.2,0.8812]
[1730283744109,3.71533,2691.6,2691.2,0.8812]
[1730283745015,3.71512,2691.7,2691.2,0.8812]
[1730283745209,3.71512,2691.7,2691.2,1.640914]
[1730283745521,3.7149,2691.9,2691.3,3.71567]
[1730283745922,3.7149,2691.9,2691.4,0.96870224]
[1730283746122,3.7149,2691.9,2691.4,4.68422224]
[1730283746440,3.71465,2692.1,2691.5,3.71528]
[1730283746615,9.60244,2692.2,2691.6,4.66678451]
[1730283746814,9.60244,2692.2,2691.6,4.59249]
[1730283748154,9.60244,2692.2,2691.6,0.8773]
[1730283748312,3.71532,2691.6,2690.8,0.8499]
[1730283748513,3.71532,2691.6,2691.0,4.56595]
[1730283748756,3.71532,2691.6,2691.0,0.8499]
[1730283749046,4.52947,2692.0,2691.0,0.8499]
[1730283749047,3.71553,2691.4,2691.0,0.8499]
[1730283749431,3.7154,2691.5,2691.0,0.8499]
[1730283749748,3.7154,2691.5,2691.1,0.07431022]
[1730283750049,3.7154,2691.5,2691.2,0.04660986]
[1730283751362,7.43087,2691.5,2691.2,0.04660986]
[1730283751835,3.71557,2691.4,2691.2,0.04660986]